Workbook

Sheet Калькулятор
A1: Параметры кредита
A2: Сумма кредита | D2: 16000000
A3: Срок в годах | D3: 25
A4: Ставка без страховок | D4: 0.05
A5: Ежемесячный платеж | D5: =PMT(D4/12,D3*12,-D2) -> 93534.40664
A7: Если берете первичку
A8: Страхование жизни и здоровья | D8: 0
A9: Ставка со страховкой | D9: 0.01
A10: Ежемесячный платеж | D10: =PMT(D9/12,D3*12,-D2) -> 60299.59268
A11: Переплата за год при повышенной ставке | D11: ='Переплата без страховки'!D13 -> 93534.40664
A12: Переплата за год при пониженной ставке | D12: ='Переплата без страховки'!H15 -> 157409.6669
A13: Заплатите за страховку | D13: =D8 -> 0
A14: =IF(D11>=D13+D12,"Страховка выгоднее","Страховка невыгодна") -> Страховка невыгодна
A16: Если берете вторичку
A17: Страхование жизни и здоровья | D17: 210000
A18: Страхование титула | D18: 59000
A19: Ставка со страховкой | D19: 0.01
A20: Ежемесячный платеж | D20: =PMT(D19/12,D3*12,-D2) -> 60299.59268
A21: Переплата за год при повышенной ставке | D21: ='Переплата без страховки'!B15 -> 792507.7832
A22: Переплата за год при пониженной ставке | D22: ='Переплата без страховки'!N15 -> 157409.6669
A23: Заплатите за страховки | D23: =D17+D18 -> 269000
A24: =IF(D21>=D23+D22,"Страховка выгоднее","Страховка невыгодна") -> Страховка выгоднее

Sheet Переплата без страховки
A1: Повышенная ставка | G1: Новостройка | M1: Вторичка
A2: Месяцы | B2: Проценты | C2: Долг | D2: Платеж | E2: Остаток | G2: Месяцы | H2: Проценты | I2: Долг | J2: Платеж | K2: Остаток | M2: Месяцы | N2: Проценты | O2: Долг | P2: Платеж | Q2: Остаток
A3: 1 | B3: =Калькулятор!D2*Калькулятор!D4/12 -> 66666.66667 | C3: =D3-B3 -> 26867.73997 | D3: =Калькулятор!D5 -> 93534.40664 | E3: =Калькулятор!D2-C3 -> 15973132.26 | G3: 1 | H3: =Калькулятор!D2*Калькулятор!D9/12 -> 13333.33333 | I3: =J3-H3 -> 46966.25934 | J3: =Калькулятор!D10 -> 60299.59268 | K3: =Калькулятор!D2-I3 -> 15953033.74 | M3: 1 | N3: =Калькулятор!D2*Калькулятор!D19/12 -> 13333.33333 | O3: =P3-N3 -> 46966.25934 | P3: =Калькулятор!D20 -> 60299.59268 | Q3: =Калькулятор!D2-O3 -> 15953033.74
A4: =A3+1 -> 2 | B4: =E3*Калькулятор!$D$4/12 -> 66554.71775 | C4: 26979.68889 | D4: =D3 -> 93534.40664 | E4: =E3-C4 -> 15946152.57 | G4: =G3+1 -> 2 | H4: =K3*Калькулятор!$D$9/12 -> 13294.19478 | I4: 47005.39789 | J4: =J3 -> 60299.59268 | K4: =K3-I4 -> 15906028.34 | M4: =M3+1 -> 2 | N4: =Q3*Калькулятор!$D$19/12 -> 13294.19478 | O4: 47005.39789 | P4: =P3 -> 60299.59268 | Q4: =Q3-O4 -> 15906028.34
A5: 3 | B5: =E4*Калькулятор!$D$4/12 -> 66442.30238 | C5: 27092.10426 | D5: 93534.40664 | E5: 15919060.47 | G5: 3 | H5: =K4*Калькулятор!$D$9/12 -> 13255.02362 | I5: 47044.56906 | J5: 60299.59268 | K5: 15858983.77 | M5: 3 | N5: =Q4*Калькулятор!$D$19/12 -> 13255.02362 | O5: 47044.56906 | P5: 60299.59268 | Q5: 15858983.77
A6: 4 | B6: =E5*Калькулятор!$D$4/12 -> 66329.41861 | C6: 27204.98803 | D6: 93534.40664 | E6: 15891855.48 | G6: 4 | H6: =K5*Калькулятор!$D$9/12 -> 13215.81981 | I6: 47083.77287 | J6: 60299.59268 | K6: 15811900 | M6: 4 | N6: =Q5*Калькулятор!$D$19/12 -> 13215.81981 | O6: 47083.77287 | P6: 60299.59268 | Q6: 15811900
A7: 5 | B7: =E6*Калькулятор!$D$4/12 -> 66216.0645 | C7: 27318.34215 | D7: 93534.40664 | E7: 15864537.14 | G7: 5 | H7: =K6*Калькулятор!$D$9/12 -> 13176.58333 | I7: 47123.00934 | J7: 60299.59268 | K7: 15764776.99 | M7: 5 | N7: =Q6*Калькулятор!$D$19/12 -> 13176.58333 | O7: 47123.00934 | P7: 60299.59268 | Q7: 15764776.99
A8: 6 | B8: =E7*Калькулятор!$D$4/12 -> 66102.23807 | C8: 27432.16857 | D8: 93534.40664 | E8: 15837104.97 | G8: 6 | H8: =K7*Калькулятор!$D$9/12 -> 13137.31416 | I8: 47162.27852 | J8: 60299.59268 | K8: 15717614.71 | M8: 6 | N8: =Q7*Калькулятор!$D$19/12 -> 13137.31416 | O8: 47162.27852 | P8: 60299.59268 | Q8: 15717614.71
A9: 7 | B9: =E8*Калькулятор!$D$4/12 -> 65987.93737 | C9: 27546.46927 | D9: 93534.40664 | E9: 15809558.5 | G9: 7 | H9: =K8*Калькулятор!$D$9/12 -> 13098.01226 | I9: 47201.58042 | J9: 60299.59268 | K9: 15670413.13 | M9: 7 | N9: =Q8*Калькулятор!$D$19/12 -> 13098.01226 | O9: 47201.58042 | P9: 60299.59268 | Q9: 15670413.13
A10: 8 | B10: =E9*Калькулятор!$D$4/12 -> 65873.16041 | C10: 27661.24623 | D10: 93534.40664 | E10: 15781897.25 | G10: 8 | H10: =K9*Калькулятор!$D$9/12 -> 13058.67761 | I10: 47240.91507 | J10: 60299.59268 | K10: 15623172.22 | M10: 8 | N10: =Q9*Калькулятор!$D$19/12 -> 13058.67761 | O10: 47240.91507 | P10: 60299.59268 | Q10: 15623172.22
A11: 9 | B11: =E10*Калькулятор!$D$4/12 -> 65757.90522 | C11: 27776.50142 | D11: 93534.40664 | E11: 15754120.75 | G11: 9 | H11: =K10*Калькулятор!$D$9/12 -> 13019.31018 | I11: 47280.2825 | J11: 60299.59268 | K11: 15575891.94 | M11: 9 | N11: =Q10*Калькулятор!$D$19/12 -> 13019.31018 | O11: 47280.2825 | P11: 60299.59268 | Q11: 15575891.94
A12: 10 | B12: =E11*Калькулятор!$D$4/12 -> 65642.1698 | C12: 27892.23684 | D12: 93534.40664 | E12: 15726228.51 | G12: 10 | H12: =K11*Калькулятор!$D$9/12 -> 12979.90995 | I12: 47319.68273 | J12: 60299.59268 | K12: 15528572.25 | M12: 10 | N12: =Q11*Калькулятор!$D$19/12 -> 12979.90995 | O12: 47319.68273 | P12: 60299.59268 | Q12: 15528572.25
A13: 11 | B13: =E12*Калькулятор!$D$4/12 -> 65525.95214 | C13: 28008.4545 | D13: 93534.40664 | E13: 15698220.06 | G13: 11 | H13: =K12*Калькулятор!$D$9/12 -> 12940.47688 | I13: 47359.1158 | J13: 60299.59268 | K13: 15481213.14 | M13: 11 | N13: =Q12*Калькулятор!$D$19/12 -> 12940.47688 | O13: 47359.1158 | P13: 60299.59268 | Q13: 15481213.14
A14: 12 | B14: =E13*Калькулятор!$D$4/12 -> 65409.25025 | C14: 28125.15639 | D14: 93534.40664 | E14: 15670094.9 | G14: 12 | H14: =K13*Калькулятор!$D$9/12 -> 12901.01095 | I14: 47398.58173 | J14: 60299.59268 | K14: 15433814.55 | M14: 12 | N14: =Q13*Калькулятор!$D$19/12 -> 12901.01095 | O14: 47398.58173 | P14: 60299.59268 | Q14: 15433814.55
B15: =SUM(B3:B14) -> 792507.7832 | H15: =SUM(H3:H14) -> 157409.6669 | N15: =SUM(N3:N14) -> 157409.6669
